bitfinex-derivatives/quotes_SOLF0:USTF0_20250716
["timestamp","ask_amount","ask_price","bid_price","bid_amount"]
[1752692037449,3.33,173.4,173.38,8.3746]
[1752692037753,3.33,173.4,173.39,11.97080419]
[1752692037955,3.33,173.4,173.39,6.20650419]
[1752692039963,3.33,173.41,173.39,6.20650419]
[1752692040259,3.36887079,173.41,173.39,8.81650419]
[1752692040457,3.33,173.4,173.39,8.81650419]
[1752692041059,3.33,173.4,173.39,6.20650419]
[1752692041651,3.33,173.43,173.39,6.20650419]
[1752692041852,3.33,173.43,173.42,6.20650419]
[1752692042047,3.33,173.45,173.42,14.57980419]
[1752692042251,3.33,173.44,173.42,14.57980419]
[1752692042451,3.33,173.44,173.43,6.20650419]
[1752692042852,3.33,173.44,173.42,2.61]
[1752692043062,3.33,173.44,173.43,6.20650419]
[1752692043362,3.33,173.46,173.43,6.20650419]
[1752692043565,12.73262578,173.55,173.46,3.33]
[1752692043760,12.73262578,173.58,173.54,3.33]
[1752692043958,5.7585,173.57,173.55,6.20650419]
[1752692044251,12.73262578,173.61,173.55,6.20650419]
[1752692044451,5.7585,173.57,173.55,6.20650419]
[1752692044862,5.7585,173.57,173.56,0.0408391]
[1752692045366,0.03770691,173.58,173.56,0.0408391]
[1752692045659,3.33,173.57,173.56,0.0408391]
[1752692046167,9.0883,173.57,173.56,0.0408391]
[1752692046760,3.33,173.57,173.52,6.20650419]
[1752692046956,3.33,173.57,173.46,6.20650419]
[1752692046957,12.73262578,173.56,173.46,6.20650419]
[1752692047157,3.33,173.55,173.46,6.20650419]
[1752692047559,3.33,173.55,173.46,9.53650419]
[1752692048064,3.33,173.55,173.36,748.53]
[1752692048065,3.33,173.48,173.4,3.33]
[1752692048254,3.33,173.53,173.44,9.53650419]
[1752692048455,3.33,173.46,173.44,9.53650419]
[1752692048652,3.33,173.46,173.45,3.33]
[1752692049066,3.33,173.46,173.44,6.20650419]
[1752692049261,3.33,173.45,173.44,6.20650419]
[1752692049473,11.5173,173.56,173.4,9.53650419]
[1752692049474,3.33,173.42,173.4,9.53650419]
[1752692049962,5.7627,173.44,173.41,3.33]
[1752692050163,3.33,173.46,173.43,3.33]
[1752692050472,3.33,173.52,173.44,6.20650419]
[1752692050664,3.33,173.46,173.44,9.53650419]
[1752692050863,3.33,173.46,173.44,3.33]
[1752692051065,3.33,173.46,173.45,6.20650419]
[1752692051262,3.33,173.52,173.45,9.53650419]
[1752692051461,3.33,173.52,173.48,6.20650419]
[1752692051670,18.60090372,173.49,173.48,6.20650419]
[1752692052177,9.091,173.49,173.48,6.20650419]
[1752692053865,5.7617,173.47,173.46,6.20650419]
[1752692054172,9.0917,173.47,173.46,6.20650419]
[1752692054469,5.7617,173.47,173.46,6.20650419]
[1752692054667,15.27160372,173.47,173.46,6.20650419]
[1752692055171,9.0917,173.47,173.46,6.20650419]
[1752692055374,3.33,173.47,173.46,9.53650419]
[1752692055869,3.33,173.46,173.42,3.33]
[1752692056072,3.33,173.46,173.45,6.20650419]
[1752692056263,3.33,173.46,173.45,9.53650419]
[1752692056665,9.50990372,173.48,173.45,9.53650419]
[1752692056867,9.1619,173.47,173.46,3.22]
[1752692057575,15.27120372,173.48,173.46,3.22]
[1752692057766,15.27120372,173.48,173.47,6.20650419]
[1752692057767,9.1613,173.48,173.47,6.20650419]
[1752692058072,9.1613,173.48,173.46,9.42650419]
[1752692058073,3.4,173.48,173.46,9.42650419]
[1752692058375,9.1613,173.48,173.46,9.42650419]
[1752692058876,9.1616,173.47,173.46,9.42650419]
[1752692059374,9.162,173.46,173.45,2.0]
[1752692060371,9.49402897,173.47,173.45,2.0]
[1752692060689,12.89402897,173.49,173.47,3.22]
[1752692060973,9.49402897,173.49,173.48,9.42650419]
[1752692061174,12.89402897,173.51,173.5,3.22]
[1752692061369,3.4,173.51,173.5,3.22]
[1752692061574,9.1603,173.51,173.5,9.42650419]
[1752692062078,18.65412897,173.52,173.51,3.22]
[1752692062276,12.89402897,173.54,173.51,3.22]
[1752692062476,3.4,173.53,173.52,6.20650419]
[1752692062668,9.1596,173.53,173.52,6.20650419]
[1752692062869,18.65362897,173.53,173.52,6.20650419]
[1752692063375,5.76,173.52,173.51,0.0366975]
[1752692063583,12.89402897,173.52,173.51,0.0366975]
[1752692063781,12.89402897,173.53,173.51,3.2566975]
[1752692064078,3.4,173.52,173.51,3.2566975]
[1752692064466,0.03997623,173.54,173.52,3.22]
[1752692064467,9.5340052,173.54,173.52,3.22]
[1752692064671,9.5340052,173.54,173.53,9.42650419]
[1752692065369,12.9340052,173.54,173.53,9.42650419]
[1752692065569,18.6933052,173.54,173.53,6.20650419]
[1752692065777,9.19927623,173.54,173.53,6.20650419]
[1752692065978,3.43997623,173.54,173.51,0.0366975]
[1752692066280,12.91729742,173.52,173.51,0.0366975]
[1752692066671,18.67729742,173.52,173.51,0.0366975]
[1752692066976,5.76,173.52,173.51,3.2566975]
[1752692067178,12.91729742,173.53,173.52,3.22]
[1752692067378,3.4,173.53,173.52,9.42650419]
[1752692067969,3.4,173.53,173.51,3.2566975]
[1752692068169,3.4,173.53,173.52,6.20650419]
[1752692068781,9.1593,173.53,173.52,6.20650419]
[1752692068984,0.03997623,173.54,173.53,3.22]
[1752692071472,3.4,173.57,173.53,3.22]
[1752692071672,3.4,173.57,173.55,9.42650419]
[1752692071882,5.7582,173.56,173.55,9.42650419]
[1752692072288,9.1578,173.57,173.55,6.20650419]
[1752692072481,9.1578,173.57,173.56,3.22]
[1752692073688,3.4,173.57,173.56,3.22]
[1752692073886,3.4,173.57,173.55,6.24743151]
[1752692073887,9.51729742,173.59,173.57,3.22]
[1752692074080,3.4,173.59,173.58,9.42650419]
[1752692074384,9.51729742,173.62,173.58,9.42650419]
[1752692074583,3.4,173.6,173.59,3.22]
[1752692074784,3.4,173.6,173.58,6.20650419]
[1752692075088,3.4,173.59,173.58,9.42650419]
[1752692076085,5.7569,173.6,173.59,3.22]
[1752692076284,9.1564,173.61,173.6,3.22]
[1752692076484,9.1564,173.61,173.6,9.42650419]
[1752692077890,9.1564,173.61,173.6,3.22]
[1752692078091,9.1564,173.61,173.6,9.42650419]
[1752692078889,9.51729742,173.64,173.6,9.42650419]
[1752692079084,3.4,173.63,173.58,3.22]
[1752692079492,9.1558,173.63,173.58,8.9771]
[1752692079684,3.4,173.62,173.59,3.26266366]
[1752692079888,3.4,173.61,173.6,3.22]
[1752692080278,3.4,173.61,173.6,9.42650419]
[1752692080797,12.91729742,173.64,173.59,0.04266366]
[1752692080984,3.4,173.62,173.59,0.04266366]
[1752692081285,5.757,173.59,173.58,6.20650419]
[1752692081480,9.157,173.59,173.58,6.20650419]
[1752692081683,3.4,173.68,173.59,0.04416598]
[1752692081888,12.73262578,173.78,173.69,3.22]
[1752692082092,199.89262578,173.8,173.71,6.20650419]
[1752692082594,199.89262578,173.8,173.74,0.04065425]
[1752692082983,187.16,173.8,173.74,0.04065425]
[1752692083185,5.7517,173.75,173.74,0.04065425]
[1752692083887,9.1517,173.75,173.74,0.04065425]
[1752692085789,9.1517,173.75,173.74,3.26065425]
[1752692085989,9.1517,173.75,173.74,0.04065425]
[1752692087895,5.7517,173.75,173.74,3.17065425]
[1752692088094,5.7517,173.75,173.74,9.37715844]
[1752692088289,5.79277986,173.76,173.75,3.13]
[1752692088886,0.04107986,173.76,173.75,3.13]
[1752692089099,5.7513,173.77,173.75,3.13]
[1752692089392,3.11,173.86,173.77,3.13]
[1752692089597,695.5761,173.87,173.79,6.20650419]
[1752692089794,3.11,173.8,173.79,9.33650419]
[1752692090300,3.11,173.8,173.79,6.20650419]
[1752692090503,8.8603,173.8,173.79,9.33650419]
[1752692090699,3.11,173.86,173.78,0.04014887]
[1752692091401,8.8606,173.79,173.78,0.04014887]
[1752692095412,8.8606,173.79,173.78,3.17014887]
[1752692096196,8.8606,173.79,173.78,9.37665306]
[1752692096496,8.8606,173.79,173.78,0.04014887]
[1752692097495,8.8606,173.79,173.78,3.17014887]
[1752692097898,5.7506,173.79,173.78,3.17014887]
[1752692098196,8.8606,173.79,173.78,3.17014887]
[1752692099101,8.8606,173.79,173.78,7.3389355]
[1752692100106,5.7506,173.79,173.78,7.3389355]
[1752692101000,5.7505,173.8,173.78,7.3389355]
[1752692101203,5.7505,173.8,173.79,7.29878663]
[1752692101608,5.7505,173.8,173.79,3.13]
[1752692101814,8.8607,173.79,173.78,0.04014887]
[1752692102007,8.8607,173.79,173.78,4.887e-05]
[1752692102311,3.11,173.75,173.72,3.13]
[1752692102609,3.11,173.75,173.69,4.16878663]
[1752692102810,8.8637,173.7,173.69,4.16878663]
[1752692103001,3.11,173.7,173.68,3.13]
[1752692103201,3.11,173.69,173.68,7.29878663]
[1752692103407,3.11,173.69,173.67,4.16878663]
[1752692103598,3.11,173.74,173.67,4.21006882]
[1752692104101,5.7544,173.68,173.67,0.04128219]
[1752692104307,8.8644,173.68,173.67,0.04128219]
[1752692105300,3.11,173.76,173.68,3.13]
[1752692105699,3.11,173.76,173.67,6.18504462]
[1752692106010,5.7547,173.67,173.66,9.31504462]
[1752692109206,5.7547,173.67,173.66,3.13]
[1752692109911,5.7547,173.67,173.66,9.31504462]
[1752692113199,0.04172729,173.68,173.66,9.31504462]
[1752692113404,0.04172729,173.68,173.67,9.31504462]
[1752692113904,5.79572729,173.68,173.67,9.31504462]
[1752692114508,8.90572729,173.68,173.67,9.31504462]
[1752692114910,5.79572729,173.68,173.67,9.31504462]
[1752692115205,8.90572729,173.68,173.67,9.31504462]
[1752692115511,5.7546,173.66,173.65,9.35402689]
[1752692115912,5.7546,173.66,173.65,3.16898227]
[1752692116208,8.8646,173.66,173.65,0.03898227]
[1752692117207,8.8646,173.66,173.65,8.227e-05]
[1752692117405,18.3098022,173.66,173.65,8.227e-05]
[1752692118506,8.8646,173.66,173.65,8.227e-05]
[1752692119008,3.15,173.63,173.6,6.18504462]
[1752692119199,3.15,173.62,173.6,6.18504462]
[1752692119405,3.15,173.63,173.6,6.18504462]
[1752692119604,5.7559,173.62,173.55,424.82]
[1752692119805,5.7559,173.62,173.61,6.18504462]
[1752692120010,3.15,173.65,173.61,6.18504462]
[1752692120314,3.15,173.65,173.63,6.18504462]
[1752692120513,9.52631688,173.66,173.63,6.18504462]
[1752692120705,3.15,173.64,173.63,6.18504462]
[1752692121016,12.67631688,173.66,173.63,6.18504462]
[1752692121216,3.15,173.66,173.64,3.25]
[1752692121509,3.15,173.64,173.61,9.43504462]
[1752692121715,3.15,173.62,173.61,6.18504462]
[1752692122016,3.15,173.61,173.59,9.43504462]
[1752692122314,12.68592426,173.61,173.59,9.43504462]
[1752692122506,8.907,173.6,173.59,9.43504462]
[1752692122707,8.907,173.6,173.53,736.14]
[1752692122708,3.15,173.6,173.57,3.25]
[1752692122908,3.15,173.58,173.57,3.25]
[1752692123710,12.68301379,173.59,173.55,9.43504462]
[1752692123917,9.53301379,173.59,173.57,6.18504462]
[1752692124216,8.907,173.6,173.59,3.25]
[1752692124522,12.68301379,173.6,173.57,6.18504462]
[1752692124722,3.15,173.59,173.58,3.25]
[1752692124912,8.9073,173.59,173.58,3.25]
[1752692126017,12.68301379,173.61,173.58,3.25]
[1752692126219,3.15,173.61,173.6,9.43504462]
[1752692126924,8.9069,173.61,173.6,7.4271844]
[1752692128320,3.15,173.6,173.45,2.0]
[1752692128514,9.52084705,173.49,173.45,2.0]
[1752692128719,3.15,173.47,173.45,5.25]
[1752692128921,5.7616,173.46,173.45,5.25]
[1752692129410,3.15,173.47,173.46,3.25]
[1752692130521,5.7613,173.47,173.46,3.25]
[1752692130925,3.15,173.46,173.4,3.25]
[1752692131120,3.15,173.46,173.38,3.25]
[1752692131316,6.19879767,173.45,173.35,3.25]
[1752692131522,3.15,173.44,173.35,3.25]
[1752692131718,5.764,173.39,173.35,3.25]
[1752692131917,8.914,173.39,173.35,3.25]
[1752692132118,8.914,173.39,173.37,3.25]
[1752692132426,8.9135,173.41,173.37,3.25]
[1752692132622,3.15,173.41,173.38,3.25]
[1752692132929,3.15,173.41,173.39,3.25]
[1752692133520,3.15,173.41,173.4,3.25]
[1752692134428,3.15,173.47,173.4,3.25]
[1752692135325,9.52084705,173.52,173.33,424.46]
[1752692135326,3.15,173.52,173.44,3.25]
[1752692136330,3.15,173.52,173.46,3.25]
[1752692137425,5.7606,173.48,173.46,3.25]
[1752692137630,3.15,173.47,173.46,3.25]
[1752692138016,3.15,173.5,173.46,3.25]
[1752692138227,11.96979767,173.56,173.47,3.25]
[1752692138430,3.15,173.48,173.47,3.25]
[1752692138729,3.15,173.48,173.46,3.25]
[1752692140530,3.15,173.48,173.46,5.25]
[1752692141031,3.15,173.47,173.46,5.25]
[1752692141431,3.15,173.47,173.46,2.0]
[1752692141642,3.15,173.46,173.42,6.19879767]
[1752692141829,3.15,173.46,173.42,9.44879767]
[1752692142030,3.15,173.44,173.42,9.44879767]
[1752692142331,6.19879767,173.52,173.34,530.69935357]
[1752692142332,3.15,173.49,173.4,9.44879767]
[1752692142830,3.15,173.49,173.4,3.25]
[1752692143026,3.15,173.47,173.36,9.44879767]
[1752692143225,3.15,173.45,173.36,9.44879767]
[1752692143826,3.15,173.45,173.36,6.19879767]
[1752692144026,3.15,173.45,173.39,3.25]
[1752692144628,6.19879767,173.48,173.37,6.19879767]
[1752692144833,3.15,173.47,173.37,9.44879767]
[1752692145231,3.15,173.4,173.38,3.25]
[1752692145535,3.15,173.4,173.39,3.25]
[1752692146227,5.7636,173.41,173.38,3.25]
[1752692146228,3.15,173.39,173.38,3.25]
[1752692147036,5.7631,173.42,173.37,6.19879767]
[1752692147239,3.18,173.4,173.39,3.22]
[1752692147435,3.18,173.41,173.38,3.22]
[1752692147832,503.89879767,173.5,173.39,6.19879767]
[1752692148036,503.89879767,173.5,173.41,3.22]
[1752692148235,3.18,173.49,173.41,3.22]
[1752692148741,3.18,173.43,173.41,3.22]
[1752692149638,3.18,173.43,173.42,3.22]
[1752692150338,3.2199207,173.44,173.42,3.22]
[1752692150542,3.2199207,173.44,173.43,3.22]
[1752692150737,0.0399207,173.44,173.43,9.41879767]
[1752692153030,0.0399207,173.44,173.41,9.41879767]
[1752692153031,3.18,173.42,173.41,9.41879767]
[1752692153241,3.18,173.42,173.4,6.23961747]
[1752692153441,0.0399207,173.44,173.4,9.45961747]
[1752692153442,5.763,173.43,173.4,9.45961747]
[1752692153642,3.18,173.41,173.4,9.45961747]
[1752692154054,5.763,173.43,173.4,9.45961747]
[1752692154055,5.763,173.43,173.4,6.23961747]
[1752692154253,3.18,173.42,173.41,3.22]
[1752692164054,3.18,173.43,173.42,3.22]
[1752692164453,8.9427,173.43,173.42,3.22]
[1752692165152,3.18,173.41,173.4,3.2608198]
[1752692166445,8.9433,173.41,173.4,0.0408198]
[1752692168856,3.18,173.41,173.4,3.2608198]
[1752692169059,12.70084705,173.43,173.4,3.2608198]
[1752692169353,9.52084705,173.42,173.41,7.40728339]
[1752692169757,3.18,173.43,173.41,7.40728339]
[1752692169958,3.18,173.43,173.42,3.22]
[1752692170459,9.56076775,173.44,173.42,3.22]
[1752692170657,0.0399207,173.44,173.43,7.40728339]
[1752692170848,3.18,173.47,173.43,11.59456678]
[1752692171054,5.7611,173.48,173.46,4.18728339]
[1752692171255,3.18,173.48,173.47,7.40728339]
[1752692171763,3.18,173.48,173.45,4.18728339]
[1752692172155,8.9412,173.48,173.45,4.18728339]
[1752692172359,3.18,173.51,173.45,4.22821632]
[1752692172659,12.69446273,173.51,173.45,4.22821632]
[1752692172862,3.18,173.5,173.45,7.44821632]
[1752692173161,3.18,173.49,173.48,3.22]
[1752692173362,3.18,173.49,173.47,6.19830543]
[1752692173661,3.18,173.48,173.47,6.19830543]
[1752692174556,5.761,173.48,173.45,6.23923836]
[1752692174752,3.18,173.47,173.45,6.23923836]
[1752692175457,3.18,173.47,173.45,9.45923836]
[1752692175960,3.18,173.47,173.46,3.22]
[1752692176558,3.18,173.47,173.45,0.04093293]
[1752692177154,5.7617,173.46,173.45,0.04093293]
[1752692177361,21.62616273,173.46,173.45,0.04093293]
[1752692178354,8.9317,173.46,173.45,0.04093293]
[1752692179060,3.17,173.46,173.45,0.04093293]
[1752692179858,21.76643856,173.46,173.45,0.04093293]
[1752692180259,8.9317,173.46,173.45,0.04093293]
[1752692180463,21.76620353,173.46,173.45,0.04093293]
[1752692181167,8.9317,173.46,173.45,0.04093293]
[1752692181467,8.9317,173.46,173.45,0.0063135]
[1752692181667,5.7632,173.42,173.4,6.19830543]
[1752692181863,3.17,173.4,173.38,9.30830543]
[1752692182061,3.17,173.39,173.38,9.30830543]
[1752692182566,15.91045139,173.45,173.38,6.19830543]
[1752692182567,12.83044192,173.41,173.38,6.19830543]
[1752692182767,12.83044192,173.41,173.4,9.30830543]
[1752692183164,3.17,173.41,173.4,9.30830543]
[1752692183357,3.17,173.41,173.4,6.19830543]
[1752692183554,15.99280527,173.41,173.4,6.19830543]
[1752692184164,15.99280527,173.41,173.4,11.96200543]
[1752692185163,15.99280527,173.41,173.4,5.7637]
[1752692188073,12.82280527,173.41,173.4,6.19830543]
[1752692188372,12.82280527,173.41,173.39,5.7643]
[1752692188562,15.99280527,173.41,173.4,6.19830543]
[1752692188766,15.99280527,173.41,173.39,5.7643]
[1752692188767,3.17,173.4,173.39,11.96260543]
[1752692189774,3.17,173.4,173.39,12.31260543]
[1752692189976,15.99280527,173.41,173.4,5.764]
[1752692190673,3.17,173.41,173.4,6.114]
[1752692190873,12.82280527,173.42,173.41,6.1136]
[1752692191171,3.17,173.49,173.42,0.35]
[1752692191474,3.17,173.49,173.48,6.19830543]
[1752692192379,3.17,173.49,173.43,6.19830543]
[1752692192767,3.17,173.46,173.43,6.19830543]
[1752692192963,3.17,173.46,173.45,4.18466756]
[1752692193369,3.17,173.49,173.35,0.35]
[1752692193566,3.17,173.48,173.43,4.18466756]
[1752692193873,3.17,173.44,173.43,4.18466756]
[1752692194177,3.17,173.44,173.36,422.66]
[1752692194477,3.17,173.44,173.43,9.94746756]
[1752692195578,3.17,173.44,173.43,4.18466756]
[1752692196079,3.17,173.44,173.4,0.35]
[1752692196282,3.17,173.44,173.41,4.18466756]
[1752692196483,3.17,173.43,173.41,4.18466756]
[1752692196878,8.9329,173.43,173.41,4.18466756]
[1752692197077,3.17,173.42,173.41,4.18466756]
[1752692199674,3.17,173.42,173.41,9.94816756]
[1752692199879,3.17,173.42,173.41,10.29816756]
[1752692200091,3.17,173.46,173.41,4.53466756]
[1752692200285,3.17,173.46,173.44,4.18466756]
[1752692200584,3.17,173.46,173.44,0.78667818]
[1752692201279,16.02449923,173.45,173.44,0.78667818]
[1752692201695,3.17,173.44,173.37,422.5]
[1752692201880,16.02310624,173.44,173.43,4.18466756]
[1752692202790,3.17,173.44,173.43,4.18466756]
[1752692203489,3.17,173.44,173.43,0.80327658]
[1752692206193,16.02310624,173.44,173.43,0.80327658]
[1752692206390,21.78560624,173.44,173.43,0.80327658]
[1752692206581,21.78560624,173.44,173.39,5.7641]
[1752692206582,3.17,173.44,173.42,4.18466756]
[1752692206987,15.91045139,173.46,173.41,4.18466756]
[1752692206988,3.41,173.42,173.41,4.18466756]
[1752692207192,3.41,173.45,173.41,4.18466756]
[1752692207493,16.25894921,173.42,173.41,4.18466756]
[1752692208186,3.41,173.41,173.39,4.18466756]
[1752692208393,16.25894921,173.4,173.39,4.18466756]
[1752692208593,22.02274921,173.4,173.39,4.18466756]
[1752692209891,9.1738,173.4,173.39,4.18466756]
[1752692210290,3.41,173.4,173.39,4.18466756]
[1752692211294,5.7636,173.41,173.39,4.18466756]
[1752692211498,5.7636,173.41,173.4,3.14]
[1752692212198,15.91045139,173.47,173.4,3.14]
[1752692212401,15.91045139,173.47,173.45,4.18466756]
[1752692212597,5.7619,173.46,173.45,0.81957323]
[1752692213196,9.1719,173.46,173.45,0.81957323]
[1752692213396,3.41,173.42,173.41,0.85006381]
[1752692213602,3.41,173.42,173.41,5.03473137]
[1752692213910,5.7629,173.43,173.42,3.14]
[1752692214201,5.7627,173.44,173.43,3.14]
[1752692214404,5.7627,173.44,173.43,7.32466756]
[1752692215199,5.7623,173.45,173.43,7.32466756]
[1752692215406,15.91045139,173.48,173.44,4.18466756]
[1752692215703,3.41,173.47,173.44,4.18466756]
[1752692216000,3.41,173.47,173.41,3.14]
[1752692216201,15.91045139,173.46,173.41,4.18466756]
[1752692216499,5.7641,173.4,173.38,3.14]
[1752692216714,3.41,173.39,173.38,3.14]
[1752692217403,9.1742,173.39,173.38,3.14]
[1752692217606,15.91045139,173.45,173.38,3.14]
[1752692217789,15.91045139,173.46,173.42,4.18466756]
[1752692217994,15.91045139,173.46,173.34,106.43935357]
[1752692217995,5.7635,173.41,173.34,106.43935357]
[1752692218307,15.91045139,173.44,173.39,7.32466756]
[1752692218606,15.91045139,173.45,173.39,7.32466756]
[1752692218798,5.7632,173.42,173.41,7.32466756]
[1752692218998,5.7632,173.42,173.41,4.18466756]
[1752692219405,5.7632,173.42,173.41,7.32466756]
[1752692219703,9.1732,173.42,173.41,7.32466756]
[1752692219900,9.1732,173.42,173.34,110.62402113]
[1752692219901,5.7638,173.41,173.36,5.7651]
[1752692220100,15.70596756,173.5,173.4,4.18466756]
[1752692220101,15.91045139,173.45,173.4,4.18466756]
[1752692220806,3.41,173.44,173.4,4.18466756]
[1752692221200,9.1735,173.41,173.4,4.18466756]
[1752692221798,9.1735,173.41,173.4,7.32466756]
[1752692222399,22.02557957,173.41,173.4,7.32466756]
[1752692222604,22.02557957,173.41,173.4,4.18466756]
[1752692222605,9.1735,173.41,173.4,4.18466756]
[1752692222996,3.41,173.43,173.35,3.14]
[1752692223198,16.25289274,173.38,173.37,7.32466756]
[1752692223400,16.25289274,173.38,173.37,1.59957975]
[1752692223593,3.41,173.4,173.37,4.18466756]
[1752692223805,12.84289274,173.41,173.39,4.18466756]
[1752692224004,22.01669274,173.41,173.39,4.18466756]
[1752692224307,12.84644767,173.42,173.39,4.18466756]
[1752692224507,3.41,173.43,173.41,4.18466756]
[1752692225002,15.91045139,173.47,173.41,4.18466756]
[1752692225193,3.41,173.45,173.44,4.18466756]
[1752692225902,3.41,173.47,173.4,4.18466756]
[1752692226099,3.41,173.46,173.42,7.32466756]
[1752692226294,9.1728,173.43,173.42,4.18466756]
[1752692226493,9.1728,173.43,173.39,4.18466756]
[1752692226494,3.41,173.43,173.39,4.18466756]
[1752692227009,3.41,173.4,173.39,7.32466756]
[1752692227307,3.41,173.43,173.39,3.14]
[1752692227511,3.41,173.43,173.4,7.32466756]
[1752692227904,3.41,173.44,173.38,4.18466756]
[1752692228412,3.41,173.39,173.38,7.32466756]
[1752692229211,3.41,173.39,173.36,7.32466756]
[1752692229407,3.41,173.42,173.36,7.32466756]
[1752692230002,3.41,173.42,173.38,7.32466756]
[1752692230403,3.41,173.44,173.41,3.14]
[1752692230605,3.41,173.44,173.4,4.18466756]
[1752692230811,3.41,173.44,173.4,7.32466756]
[1752692231012,15.91045139,173.47,173.4,7.32466756]
[1752692231013,5.7634,173.42,173.41,3.14]
[1752692231212,15.91045139,173.47,173.4,4.18466756]
[1752692231415,3.41,173.41,173.4,7.32466756]
[1752692231824,9.1735,173.41,173.4,3.14]
[1752692232007,9.1735,173.41,173.4,7.32466756]
[1752692232516,9.1735,173.41,173.4,4.18466756]
[1752692233221,9.174,173.4,173.39,3.14]
[1752692233414,15.91045139,173.45,173.38,4.18466756]
[1752692233717,3.41,173.44,173.38,4.18466756]
[1752692234106,3.41,173.39,173.38,7.32466756]
[1752692234303,9.1741,173.4,173.39,3.14]
[1752692234706,12.82628064,173.41,173.38,7.32466756]
[1752692234707,3.41,173.39,173.38,7.32466756]
[1752692234903,3.41,173.39,173.38,3.14]
[1752692235121,3.41,173.39,173.38,7.32466756]
[1752692235419,3.41,173.39,173.38,4.18466756]
[1752692235420,9.1742,173.39,173.38,4.18466756]
[1752692236018,9.1742,173.39,173.38,7.32466756]
[1752692237117,5.765,173.37,173.36,4.18466756]
[1752692237316,12.82628064,173.39,173.34,113.74402113]
[1752692237512,3.29,173.37,173.34,7.30466756]
[1752692237719,3.29,173.35,173.34,7.30466756]
[1752692238427,9.0555,173.35,173.34,7.30466756]
[1752692238617,3.29,173.35,173.34,7.30466756]
[1752692239515,3.29,173.35,173.31,2.0]
[1752692239714,3.29,173.35,173.32,3.12]
[1752692239919,5.7664,173.33,173.31,6.18466756]
[1752692240222,3.29,173.32,173.31,9.30466756]
[1752692240422,9.0565,173.32,173.31,2.0]
[1752692240615,3.29,173.34,173.31,9.30466756]
[1752692240808,5.7661,173.34,173.32,3.12]
[1752692241009,27.43715139,173.42,173.31,6.18466756]
[1752692241010,3.29,173.35,173.31,5.12]
[1752692241225,3.29,173.34,173.31,5.12]
[1752692241528,3.29,173.33,173.32,3.12]
[1752692242519,5.7658,173.35,173.32,3.12]
[1752692242727,3.29,173.34,173.32,3.12]
[1752692243025,9.0558,173.35,173.34,3.12]
[1752692243210,12.82628064,173.38,173.34,3.12]
[1752692243411,12.82628064,173.41,173.38,3.12]
[1752692243720,12.82628064,173.45,173.4,4.18466756]
[1752692243927,3.29,173.43,173.4,7.30466756]
[1752692244416,9.0534,173.42,173.4,7.30466756]
[1752692245022,3.29,173.41,173.37,6.2028395]
[1752692245329,3.29,173.41,173.38,3.12]
[1752692245520,3.29,173.43,173.4,3.12]
[1752692245829,3.29,173.42,173.38,9.3228395]
[1752692246022,3.29,173.42,173.39,3.12]
[1752692246215,3.29,173.41,173.39,3.12]
[1752692246410,16.11628064,173.44,173.41,6.2028395]
[1752692246628,11.5204,173.52,173.43,3.12]
[1752692246629,16.11628064,173.46,173.43,3.12]
[1752692246822,3.29,173.45,173.44,3.12]
[1752692247027,12.82628064,173.46,173.41,6.2028395]
[1752692247228,3.29,173.44,173.41,6.2028395]
[1752692248025,3.29,173.44,173.43,6.2028395]
[1752692248524,12.82628064,173.46,173.43,6.2028395]
[1752692248722,3.29,173.46,173.45,6.2028395]
[1752692248926,3.29,173.46,173.45,9.3228395]